[Event "Early-Titled-Tuesday-Blitz-April-02-2024"]
[Site "Chess.com"]
[Date "2024.04.02"]
[Round "6"]
[White "David_ATM"]
[Black "Kunalm64"]
[Result "0-1"]
[WhiteElo "2412"]
[BlackElo "2629"]
[TimeControl "180+1"]
[EndTime "9:07:31 PDT"]
[Termination "Kunalm64 won by checkmate"]

1. e4 {[%clk 0:03:00.9]} 1... c6 {[%clk 0:02:59.8]} 2. Nc3 {[%clk 0:03:00.4]}
2... d5 {[%clk 0:03:00.2]} 3. Nf3 {[%clk 0:03:01.1]} 3... a6 {[%clk 0:02:34.6]}
4. d4 {[%clk 0:02:56.7]} 4... Bg4 {[%clk 0:02:33.8]} 5. Be2 {[%clk 0:02:55.4]}
5... e6 {[%clk 0:02:33.5]} 6. O-O {[%clk 0:02:54.3]} 6... Nf6 {[%clk 0:02:33.2]}
7. Bg5 {[%clk 0:02:36.9]} 7... Be7 {[%clk 0:02:31.9]} 8. e5 {[%clk 0:02:37.3]}
8... Nfd7 {[%clk 0:02:31.7]} 9. Bxe7 {[%clk 0:02:37.3]} 9... Qxe7 {[%clk
0:02:32.4]} 10. Nd2 {[%clk 0:02:25]} 10... Bxe2 {[%clk 0:02:15.6]} 11. Nxe2
{[%clk 0:02:25.9]} 11... c5 {[%clk 0:02:14.3]} 12. c3 {[%clk 0:02:26.4]} 12...
Nc6 {[%clk 0:02:14.2]} 13. Rc1 {[%clk 0:02:21.2]} 13... O-O {[%clk 0:02:10]} 14.
a3 {[%clk 0:02:12.4]} 14... cxd4 {[%clk 0:02:03]} 15. cxd4 {[%clk 0:02:13.3]}
15... Rac8 {[%clk 0:02:03.2]} 16. Nb3 {[%clk 0:02:08.1]} 16... Qd8 {[%clk
0:01:31.5]} 17. Nc5 {[%clk 0:01:51]} 17... Nxc5 {[%clk 0:01:30.5]} 18. Rxc5
{[%clk 0:01:51.9]} 18... Ne7 {[%clk 0:01:25.2]} 19. b4 {[%clk 0:01:45.6]} 19...
b6 {[%clk 0:01:24.4]} 20. Rc2 {[%clk 0:01:37.2]} 20... Rxc2 {[%clk 0:01:22]} 21.
Qxc2 {[%clk 0:01:38.1]} 21... Qb8 {[%clk 0:01:21.7]} 22. Qd3 {[%clk 0:01:30.8]}
22... Qb7 {[%clk 0:01:15.7]} 23. Rc1 {[%clk 0:01:30.3]} 23... Rc8 {[%clk
0:01:15.3]} 24. Rc3 {[%clk 0:01:27.7]} 24... h6 {[%clk 0:00:56.1]} 25. Kf1
{[%clk 0:01:26.9]} 25... Rxc3 {[%clk 0:00:55.4]} 26. Qxc3 {[%clk 0:01:27.8]}
26... Qc6 {[%clk 0:00:54.7]} 27. Qd3 {[%clk 0:00:43.1]} 27... Qc4 {[%clk
0:00:53.2]} 28. Qxc4 {[%clk 0:00:38.2]} 28... dxc4 {[%clk 0:00:52.9]} 29. Ke1
{[%clk 0:00:36.6]} 29... Nd5 {[%clk 0:00:51.6]} 30. Kd2 {[%clk 0:00:35.9]} 30...
b5 {[%clk 0:00:51.4]} 31. g3 {[%clk 0:00:31.1]} 31... Kf8 {[%clk 0:00:50.5]} 32.
f4 {[%clk 0:00:27.5]} 32... Ke7 {[%clk 0:00:48.7]} 33. Ng1 {[%clk 0:00:18.6]}
33... Kd7 {[%clk 0:00:38.7]} 34. Nf3 {[%clk 0:00:19.1]} 34... Kc6 {[%clk
0:00:39.1]} 35. Ne1 {[%clk 0:00:19.5]} 35... Kb6 {[%clk 0:00:38.1]} 36. Nc2
{[%clk 0:00:14.6]} 36... a5 {[%clk 0:00:31.4]} 37. h3 {[%clk 0:00:15.2]} 37...
h5 {[%clk 0:00:29.2]} 38. Kc1 {[%clk 0:00:03.5]} 38... h4 {[%clk 0:00:18.3]} 39.
gxh4 {[%clk 0:00:03.6]} 39... Nxf4 {[%clk 0:00:18.1]} 40. Ne3 {[%clk 0:00:03.9]}
40... axb4 {[%clk 0:00:18.2]} 41. axb4 {[%clk 0:00:04.8]} 41... Kc6 {[%clk
0:00:16.7]} 42. h5 {[%clk 0:00:02.5]} 42... Nxh5 {[%clk 0:00:16.3]} 43. Kd2
{[%clk 0:00:02.7]} 43... Nf4 {[%clk 0:00:16.3]} 44. h4 {[%clk 0:00:03.4]} 44...
Nd5 {[%clk 0:00:16.4]} 45. Ng4 {[%clk 0:00:03.5]} 45... Nxb4 {[%clk 0:00:16]}
46. h5 {[%clk 0:00:03.7]} 46... Nd5 {[%clk 0:00:15.9]} 47. Nf6 {[%clk
0:00:03.9]} 47... b4 {[%clk 0:00:12.8]} 48. Ne8 {[%clk 0:00:04.3]} 48... c3+
{[%clk 0:00:11.5]} 49. Kd3 {[%clk 0:00:04.4]} 49... b3 {[%clk 0:00:10.5]} 50.
Nxg7 {[%clk 0:00:04.1]} 50... b2 {[%clk 0:00:10.8]} 51. Kc2 {[%clk 0:00:04.2]}
51... Nb4+ {[%clk 0:00:10.3]} 52. Kb1 {[%clk 0:00:04.6]} 52... Kb5 {[%clk
0:00:10.3]} 53. h6 {[%clk 0:00:04.7]} 53... Kc4 {[%clk 0:00:10.7]} 54. Nf5
{[%clk 0:00:01.2]} 54... exf5 {[%clk 0:00:10.6]} 55. e6 {[%clk 0:00:01.1]} 55...
Kb3 {[%clk 0:00:11]} 56. exf7 {[%clk 0:00:01.7]} 56... c2# {[%clk 0:00:11.8]}
0-1

[Event "Early-Titled-Tuesday-Blitz-April-02-2024"]
[Site "Chess.com"]
[Date "2024.04.02"]
[Round "6"]
[White "MNyuyu"]
[Black "ketster"]
[Result "0-1"]
[WhiteElo "2398"]
[BlackElo "2615"]
[TimeControl "180+1"]
[EndTime "9:07:32 PDT"]
[Termination "ketster won by checkmate"]

1. d4 {[%clk 0:03:00.9]} 1... Nf6 {[%clk 0:02:57.8]} 2. Nf3 {[%clk 0:03:01.5]}
2... e6 {[%clk 0:02:55.7]} 3. Bg5 {[%clk 0:03:01.6]} 3... h6 {[%clk 0:02:55.1]}
4. Bh4 {[%clk 0:03:00.8]} 4... c5 {[%clk 0:02:53.2]} 5. e3 {[%clk 0:03:00.1]}
5... Qb6 {[%clk 0:02:44.3]} 6. Bxf6 {[%clk 0:02:59]} 6... gxf6 {[%clk
0:02:39.9]} 7. Nbd2 {[%clk 0:02:56.5]} 7... Qxb2 {[%clk 0:02:36.9]} 8. Rb1
{[%clk 0:02:49.1]} 8... Qc3 {[%clk 0:02:35.6]} 9. Bd3 {[%clk 0:02:48.8]} 9... d5
{[%clk 0:02:27.5]} 10. O-O {[%clk 0:02:44.3]} 10... c4 {[%clk 0:02:21.8]} 11.
Be2 {[%clk 0:02:41.8]} 11... Nc6 {[%clk 0:01:59.1]} 12. Re1 {[%clk 0:02:38.6]}
12... f5 {[%clk 0:01:58]} 13. Rb5 {[%clk 0:02:20.2]} 13... Qa3 {[%clk
0:01:49.4]} 14. Qb1 {[%clk 0:02:08.9]} 14... b6 {[%clk 0:01:41.6]} 15. Ne5
{[%clk 0:01:39]} 15... Nxe5 {[%clk 0:01:36.2]} 16. dxe5 {[%clk 0:01:39.9]} 16...
Bd7 {[%clk 0:01:34.9]} 17. Bf3 {[%clk 0:01:33.1]} 17... Rc8 {[%clk 0:01:23]} 18.
Bh5 {[%clk 0:01:03.6]} 18... Qa6 {[%clk 0:01:10.5]} 19. a4 {[%clk 0:00:52.8]}
19... Qxa4 {[%clk 0:01:09]} 20. Rb2 {[%clk 0:00:47.2]} 20... c3 {[%clk
0:01:07.3]} 21. Ra2 {[%clk 0:00:46.9]} 21... cxd2 {[%clk 0:00:54.8]} 22. Rxa4
{[%clk 0:00:45.6]} 22... dxe1=Q+ {[%clk 0:00:54.3]} 23. Qxe1 {[%clk 0:00:46.2]}
23... Bxa4 {[%clk 0:00:54.5]} 24. c3 {[%clk 0:00:40.6]} 24... Be7 {[%clk
0:00:49.3]} 25. h3 {[%clk 0:00:39.3]} 25... b5 {[%clk 0:00:41.1]} 26. Kh2 {[%clk
0:00:38.7]} 26... a5 {[%clk 0:00:38.2]} 27. Qd2 {[%clk 0:00:32.1]} 27... b4
{[%clk 0:00:36]} 28. cxb4 {[%clk 0:00:30.7]} 28... axb4 {[%clk 0:00:34.7]} 29.
Qa2 {[%clk 0:00:27.2]} 29... Bd7 {[%clk 0:00:32]} 30. Qb3 {[%clk 0:00:26.2]}
30... Rc3 {[%clk 0:00:28.9]} 31. Qa2 {[%clk 0:00:25]} 31... O-O {[%clk
0:00:27.3]} 32. Qa7 {[%clk 0:00:19.8]} 32... Rd8 {[%clk 0:00:26.7]} 33. Qb7
{[%clk 0:00:18.2]} 33... Rcc8 {[%clk 0:00:17.8]} 34. Bd1 {[%clk 0:00:14.3]}
34... Bf8 {[%clk 0:00:15.9]} 35. Bb3 {[%clk 0:00:13.1]} 35... Bg7 {[%clk
0:00:15]} 36. g4 {[%clk 0:00:12.3]} 36... Bxe5+ {[%clk 0:00:14.4]} 37. Kg2
{[%clk 0:00:11.7]} 37... fxg4 {[%clk 0:00:13.4]} 38. hxg4 {[%clk 0:00:11.5]}
38... Bc3 {[%clk 0:00:13.2]} 39. Qb6 {[%clk 0:00:08.5]} 39... d4 {[%clk
0:00:11.9]} 40. exd4 {[%clk 0:00:07.3]} 40... Bc6+ {[%clk 0:00:12.3]} 41. Kh3
{[%clk 0:00:06.2]} 41... Rxd4 {[%clk 0:00:12]} 42. Qa7 {[%clk 0:00:05.1]} 42...
Rd3+ {[%clk 0:00:11.6]} 43. Kh4 {[%clk 0:00:05]} 43... Bf6+ {[%clk 0:00:11.2]}
44. g5 {[%clk 0:00:05.2]} 44... Bxg5+ {[%clk 0:00:09.8]} 45. Kg4 {[%clk
0:00:05.4]} 45... Bf3+ {[%clk 0:00:03.6]} 46. Kg3 {[%clk 0:00:03.5]} 46... Bd5+
{[%clk 0:00:03.8]} 47. Kg4 {[%clk 0:00:03.3]} 47... Rxb3 {[%clk 0:00:03.6]} 48.
f4 {[%clk 0:00:02.6]} 48... Bf6 {[%clk 0:00:02.6]} 49. Qd7 {[%clk 0:00:03]}
49... Rd8 {[%clk 0:00:02.1]} 50. Qc7 {[%clk 0:00:03.1]} 50... Re8 {[%clk
0:00:02.3]} 51. Qb6 {[%clk 0:00:03.9]} 51... Rb1 {[%clk 0:00:02.3]} 52. Qg1
{[%clk 0:00:04.6]} 52... Rxg1+ {[%clk 0:00:02.8]} 53. Kh5 {[%clk 0:00:05.1]}
53... Bf3+ {[%clk 0:00:02.4]} 54. Kxh6 {[%clk 0:00:04.7]} 54... Rh1# {[%clk
0:00:02.9]} 0-1

[Event "Early-Titled-Tuesday-Blitz-April-02-2024"]
[Site "Chess.com"]
[Date "2024.04.02"]
[Round "6"]
[White "EvgenyBurmakin"]
[Black "Ralf61"]
[Result "0-1"]
[WhiteElo "2359"]
[BlackElo "2534"]
[TimeControl "180+1"]
[EndTime "9:07:33 PDT"]
[Termination "Ralf61 won on time"]

1. e4 {[%clk 0:02:52]} 1... c5 {[%clk 0:02:59.2]} 2. Nc3 {[%clk 0:02:50.3]} 2...
d6 {[%clk 0:02:58.4]} 3. Nf3 {[%clk 0:02:48.6]} 3... Nf6 {[%clk 0:02:56.9]} 4.
d4 {[%clk 0:02:48.3]} 4... cxd4 {[%clk 0:02:56.1]} 5. Nxd4 {[%clk 0:02:49.2]}
5... a6 {[%clk 0:02:55.3]} 6. Be3 {[%clk 0:02:48.7]} 6... e5 {[%clk 0:02:54.2]}
7. Nb3 {[%clk 0:02:48.2]} 7... Be6 {[%clk 0:02:52.9]} 8. f3 {[%clk 0:02:47.7]}
8... h5 {[%clk 0:02:49.7]} 9. Qd2 {[%clk 0:02:47.3]} 9... Nbd7 {[%clk
0:02:48.7]} 10. O-O-O {[%clk 0:02:46.9]} 10... b5 {[%clk 0:02:44.7]} 11. Kb1
{[%clk 0:02:35.8]} 11... Qc7 {[%clk 0:02:34.3]} 12. h4 {[%clk 0:02:22.8]} 12...
Be7 {[%clk 0:02:25.9]} 13. Nd5 {[%clk 0:02:22.1]} 13... Nxd5 {[%clk 0:02:19.7]}
14. exd5 {[%clk 0:02:23]} 14... Bf5 {[%clk 0:02:19.9]} 15. Bd3 {[%clk
0:02:22.1]} 15... Bxd3 {[%clk 0:02:13.1]} 16. Qxd3 {[%clk 0:02:22]} 16... Rc8
{[%clk 0:02:12.3]} 17. c3 {[%clk 0:02:12.1]} 17... Qc4 {[%clk 0:02:07.7]} 18.
Na5 {[%clk 0:02:02.7]} 18... Qxd3+ {[%clk 0:01:54.9]} 19. Rxd3 {[%clk
0:02:03.5]} 19... f5 {[%clk 0:01:44.9]} 20. Nc6 {[%clk 0:01:48]} 20... Bf6
{[%clk 0:01:44.5]} 21. Kc2 {[%clk 0:01:32.3]} 21... Kf7 {[%clk 0:01:42.1]} 22.
Bf2 {[%clk 0:01:27]} 22... Nc5 {[%clk 0:01:23.1]} 23. Rd2 {[%clk 0:01:11.7]}
23... Rhe8 {[%clk 0:01:13.4]} 24. Re1 {[%clk 0:01:09.8]} 24... e4 {[%clk
0:01:03.1]} 25. Bxc5 {[%clk 0:00:53.3]} 25... dxc5 {[%clk 0:01:03]} 26. fxe4
{[%clk 0:00:52.7]} 26... Rxe4 {[%clk 0:00:56.1]} 27. Rxe4 {[%clk 0:00:49.5]}
27... fxe4 {[%clk 0:00:54]} 28. Re2 {[%clk 0:00:47.6]} 28... Re8 {[%clk
0:00:52.9]} 29. d6 {[%clk 0:00:45.2]} 29... Re6 {[%clk 0:00:51.1]} 30. Na5
{[%clk 0:00:22.3]} 30... Rxd6 {[%clk 0:00:43]} 31. Rxe4 {[%clk 0:00:21.6]} 31...
c4 {[%clk 0:00:42.6]} 32. Nb7 {[%clk 0:00:20.9]} 32... Rd3 {[%clk 0:00:39]} 33.
Nc5 {[%clk 0:00:20.1]} 33... Rg3 {[%clk 0:00:37.8]} 34. Re2 {[%clk 0:00:19.9]}
34... Bxh4 {[%clk 0:00:37]} 35. Nxa6 {[%clk 0:00:16]} 35... Bd8 {[%clk 0:00:36]}
36. Nc5 {[%clk 0:00:13.8]} 36... Bb6 {[%clk 0:00:33.2]} 37. Ne4 {[%clk
0:00:13.3]} 37... Re3 {[%clk 0:00:30.6]} 38. Rxe3 {[%clk 0:00:10.5]} 38... Bxe3
{[%clk 0:00:30.4]} 39. Nd6+ {[%clk 0:00:11.4]} 39... Ke6 {[%clk 0:00:28.3]} 40.
Nxb5 {[%clk 0:00:12]} 40... g5 {[%clk 0:00:28.1]} 41. a4 {[%clk 0:00:11.5]}
41... h4 {[%clk 0:00:27.4]} 42. Kd1 {[%clk 0:00:07]} 42... g4 {[%clk 0:00:26]}
43. Ke2 {[%clk 0:00:06.8]} 43... Bc1 {[%clk 0:00:22.9]} 44. a5 {[%clk
0:00:04.1]} 44... Kd5 {[%clk 0:00:20.3]} 45. a6 {[%clk 0:00:04.3]} 45... Kc6
{[%clk 0:00:19]} 46. Kf2 {[%clk 0:00:02.8]} 46... Bxb2 {[%clk 0:00:17.1]} 47. a7
{[%clk 0:00:02.2]} 47... Kb7 {[%clk 0:00:16.7]} 48. Nd6+ {[%clk 0:00:02.4]}
48... Kxa7 {[%clk 0:00:16.3]} 49. Nxc4 {[%clk 0:00:03.3]} 49... Bxc3 {[%clk
0:00:16.2]} 50. Nd6 {[%clk 0:00:02.7]} 50... Kb6 {[%clk 0:00:13.4]} 51. Ne4
{[%clk 0:00:01.3]} 51... Bd4+ {[%clk 0:00:11.7]} 0-1

[Event "Early-Titled-Tuesday-Blitz-April-02-2024"]
[Site "Chess.com"]
[Date "2024.04.02"]
[Round "6"]
[White "teresin05"]
[Black "sorch29"]
[Result "0-1"]
[WhiteElo "2242"]
[BlackElo "2428"]
[TimeControl "180+1"]
[EndTime "9:07:36 PDT"]
[Termination "sorch29 won by resignation"]

1. e4 {[%clk 0:02:55.3]} 1... c5 {[%clk 0:02:58.9]} 2. Nf3 {[%clk 0:02:54.9]}
2... Nc6 {[%clk 0:02:59.1]} 3. d4 {[%clk 0:02:53.8]} 3... cxd4 {[%clk 0:03:00]}
4. Nxd4 {[%clk 0:02:54.6]} 4... Nf6 {[%clk 0:02:58.6]} 5. Nc3 {[%clk 0:02:53.9]}
5... d6 {[%clk 0:02:59.1]} 6. f3 {[%clk 0:02:52.2]} 6... e5 {[%clk 0:02:58.7]}
7. Ndb5 {[%clk 0:02:48.1]} 7... a6 {[%clk 0:02:43.2]} 8. Na3 {[%clk 0:02:46.5]}
8... b5 {[%clk 0:02:43.9]} 9. Nd5 {[%clk 0:02:29.3]} 9... Nxd5 {[%clk
0:02:43.4]} 10. exd5 {[%clk 0:02:19.8]} 10... Nd4 {[%clk 0:01:43.6]} 11. c3
{[%clk 0:02:11.8]} 11... Nf5 {[%clk 0:01:42.4]} 12. Qc2 {[%clk 0:01:52.6]} 12...
Be7 {[%clk 0:01:26.8]} 13. Bd3 {[%clk 0:01:51.1]} 13... g6 {[%clk 0:01:17.7]}
14. O-O {[%clk 0:01:46.8]} 14... O-O {[%clk 0:01:17.7]} 15. Qf2 {[%clk
0:01:43.5]} 15... Bh4 {[%clk 0:01:12.7]} 16. g3 {[%clk 0:01:42.5]} 16... Bg5
{[%clk 0:01:03.8]} 17. c4 {[%clk 0:01:37.8]} 17... Bxc1 {[%clk 0:00:44.4]} 18.
Raxc1 {[%clk 0:01:34.2]} 18... bxc4 {[%clk 0:00:34.7]} 19. Nxc4 {[%clk
0:01:32.7]} 19... Nd4 {[%clk 0:00:34.4]} 20. Rc3 {[%clk 0:01:23.6]} 20... Rb8
{[%clk 0:00:16]} 21. Rfc1 {[%clk 0:01:19.3]} 21... f5 {[%clk 0:00:13.7]} 22. b3
{[%clk 0:01:16.2]} 22... f4 {[%clk 0:00:13.4]} 23. g4 {[%clk 0:01:14.7]} 23...
Rf7 {[%clk 0:00:07.1]} 24. Bf1 {[%clk 0:01:11.7]} 24... Kg7 {[%clk 0:00:02.4]}
25. Nd2 {[%clk 0:01:02.2]} 25... Bb7 {[%clk 0:00:02.5]} 26. Bc4 {[%clk
0:00:57.8]} 26... Rc7 {[%clk 0:00:03.1]} 27. Ne4 {[%clk 0:00:57.1]} 27... Rbc8
{[%clk 0:00:03.8]} 28. b4 {[%clk 0:00:44.4]} 28... Qe7 {[%clk 0:00:03.3]} 29.
Bb3 {[%clk 0:00:42.6]} 29... Qd8 {[%clk 0:00:03]} 30. Kg2 {[%clk 0:00:35.2]}
30... Rxc3 {[%clk 0:00:03]} 31. Rxc3 {[%clk 0:00:36.1]} 31... Rxc3 {[%clk
0:00:03.4]} 32. Nxc3 {[%clk 0:00:37]} 32... Qc7 {[%clk 0:00:04]} 33. Ne4 {[%clk
0:00:36.1]} 33... Nxb3 {[%clk 0:00:03.5]} 34. axb3 {[%clk 0:00:36.8]} 34... Bxd5
{[%clk 0:00:04.1]} 35. Qd2 {[%clk 0:00:24.4]} 35... Bxe4 {[%clk 0:00:03.8]} 36.
fxe4 {[%clk 0:00:25.3]} 36... Qb6 {[%clk 0:00:03.7]} 37. Kf3 {[%clk 0:00:23.8]}
37... Qc6 {[%clk 0:00:01.7]} 38. Qd3 {[%clk 0:00:21.6]} 38... Kf7 {[%clk
0:00:02]} 39. h4 {[%clk 0:00:16.9]} 39... Ke7 {[%clk 0:00:02.1]} 40. h5 {[%clk
0:00:17]} 40... gxh5 {[%clk 0:00:02]} 41. gxh5 {[%clk 0:00:17.9]} 41... h6
{[%clk 0:00:02.6]} 42. Qd2 {[%clk 0:00:15.7]} 42... Kf6 {[%clk 0:00:01.7]} 43.
Qe1 {[%clk 0:00:12.4]} 43... Qc7 {[%clk 0:00:02]} 44. Qh4+ {[%clk 0:00:12.3]}
44... Kf7 {[%clk 0:00:02.7]} 45. Qe1 {[%clk 0:00:11.9]} 45... Qc6 {[%clk
0:00:03]} 46. Qd2 {[%clk 0:00:10.9]} 46... Kf6 {[%clk 0:00:03.5]} 47. Qe1 {[%clk
0:00:10.6]} 47... Kf7 {[%clk 0:00:03.9]} 48. Qd2 {[%clk 0:00:10.5]} 48... Ke7
{[%clk 0:00:04.6]} 49. Qe1 {[%clk 0:00:10.8]} 49... Kd7 {[%clk 0:00:05.3]} 50.
Qd2 {[%clk 0:00:10.6]} 50... Kc7 {[%clk 0:00:06]} 51. Qd3 {[%clk 0:00:09.6]}
51... Kb6 {[%clk 0:00:06.4]} 52. Kg4 {[%clk 0:00:10]} 52... Qd7+ {[%clk
0:00:06.2]} 53. Kf3 {[%clk 0:00:10.2]} 53... Qh3+ {[%clk 0:00:06.2]} 54. Ke2
{[%clk 0:00:11.1]} 54... Qxd3+ {[%clk 0:00:06.7]} 55. Kxd3 {[%clk 0:00:12]}
55... Kb5 {[%clk 0:00:07.4]} 56. Kc3 {[%clk 0:00:12.3]} 56... f3 {[%clk
0:00:07.3]} 57. Kd3 {[%clk 0:00:13]} 57... Kxb4 {[%clk 0:00:08.1]} 58. Ke3
{[%clk 0:00:13.4]} 58... Kxb3 {[%clk 0:00:09]} 59. Kxf3 {[%clk 0:00:14.3]} 59...
a5 {[%clk 0:00:09.9]} 60. Kg4 {[%clk 0:00:15]} 60... a4 {[%clk 0:00:10.8]} 61.
Kf5 {[%clk 0:00:15.9]} 61... a3 {[%clk 0:00:11]} 62. Kg6 {[%clk 0:00:16.8]}
62... a2 {[%clk 0:00:11.9]} 63. Kxh6 {[%clk 0:00:17.7]} 63... a1=Q {[%clk
0:00:12.8]} 64. Kg7 {[%clk 0:00:18.5]} 64... Qd4 {[%clk 0:00:13.3]} 65. h6
{[%clk 0:00:19.4]} 65... Qxe4 {[%clk 0:00:14]} 66. h7 {[%clk 0:00:20.2]} 66...
Qh4 {[%clk 0:00:14.7]} 67. h8=Q {[%clk 0:00:19.2]} 67... Qxh8+ {[%clk
0:00:15.3]} 68. Kxh8 {[%clk 0:00:20.1]} 68... e4 {[%clk 0:00:15.8]} 69. Kg7
{[%clk 0:00:21]} 69... e3 {[%clk 0:00:16]} 70. Kf6 {[%clk 0:00:21.9]} 70... e2
{[%clk 0:00:16.7]} 71. Ke6 {[%clk 0:00:22.8]} 71... e1=Q+ {[%clk 0:00:17.3]} 72.
Kd5 {[%clk 0:00:23.7]} 72... Qd2+ {[%clk 0:00:17.6]} 0-1

[Event "Early-Titled-Tuesday-Blitz-April-02-2024"]
[Site "Chess.com"]
[Date "2024.04.02"]
[Round "6"]
[White "MITerryble"]
[Black "FairChess_on_YouTube"]
[Result "1-0"]
[WhiteElo "3010"]
[BlackElo "3077"]
[TimeControl "180+1"]
[EndTime "9:07:38 PDT"]
[Termination "MITerryble won by checkmate"]

1. d4 {[%clk 0:03:00.9]} 1... Nf6 {[%clk 0:02:59.3]} 2. Bg5 {[%clk 0:03:00.9]}
2... g6 {[%clk 0:02:58.6]} 3. Nd2 {[%clk 0:02:59.7]} 3... Bg7 {[%clk 0:02:57.1]}
4. c3 {[%clk 0:03:00.2]} 4... O-O {[%clk 0:02:56.4]} 5. e4 {[%clk 0:03:00.1]}
5... d6 {[%clk 0:02:57]} 6. Ngf3 {[%clk 0:03:00]} 6... Nc6 {[%clk 0:02:56.8]} 7.
Bb5 {[%clk 0:02:59.5]} 7... Bd7 {[%clk 0:02:56.6]} 8. O-O {[%clk 0:02:59.2]}
8... Qe8 {[%clk 0:02:56.8]} 9. Bd3 {[%clk 0:02:53.1]} 9... e5 {[%clk 0:02:56.6]}
10. Re1 {[%clk 0:02:52.2]} 10... h6 {[%clk 0:02:55.3]} 11. Bh4 {[%clk
0:02:51.9]} 11... Nh5 {[%clk 0:02:54.9]} 12. dxe5 {[%clk 0:02:48.9]} 12... dxe5
{[%clk 0:02:45.8]} 13. Bf1 {[%clk 0:02:45.4]} 13... Nf4 {[%clk 0:02:43]} 14. Qc2
{[%clk 0:02:40.5]} 14... a5 {[%clk 0:02:38.3]} 15. Rad1 {[%clk 0:02:39.9]} 15...
Be6 {[%clk 0:02:38.2]} 16. Nc4 {[%clk 0:02:33.3]} 16... a4 {[%clk 0:02:34.3]}
17. b4 {[%clk 0:02:30]} 17... axb3 {[%clk 0:02:33.9]} 18. axb3 {[%clk
0:02:30.9]} 18... Bg4 {[%clk 0:02:25.4]} 19. Ncd2 {[%clk 0:02:15.5]} 19... Qe6
{[%clk 0:02:19.9]} 20. h3 {[%clk 0:02:06.8]} 20... Bxf3 {[%clk 0:02:08.4]} 21.
Nxf3 {[%clk 0:02:07.7]} 21... Bf6 {[%clk 0:02:06.7]} 22. Bg3 {[%clk 0:01:57.9]}
22... Nh5 {[%clk 0:02:06.8]} 23. Bh2 {[%clk 0:01:57.2]} 23... Kg7 {[%clk
0:02:04.5]} 24. Bc4 {[%clk 0:01:54.8]} 24... Qe7 {[%clk 0:02:04.8]} 25. b4
{[%clk 0:01:54.7]} 25... Nf4 {[%clk 0:01:52.4]} 26. Bd5 {[%clk 0:01:53.4]} 26...
Nd8 {[%clk 0:01:27.9]} 27. Bxf4 {[%clk 0:01:52.5]} 27... exf4 {[%clk 0:01:28]}
28. e5 {[%clk 0:01:53.4]} 28... Bg5 {[%clk 0:01:28.6]} 29. Re4 {[%clk
0:01:26.8]} 29... c6 {[%clk 0:01:15.9]} 30. Bb3 {[%clk 0:01:26.9]} 30... Ne6
{[%clk 0:01:16.5]} 31. Bxe6 {[%clk 0:01:24.9]} 31... Qxe6 {[%clk 0:01:16.6]} 32.
h4 {[%clk 0:01:24.3]} 32... Ra2 {[%clk 0:01:12]} 33. Qb1 {[%clk 0:01:24.3]}
33... Be7 {[%clk 0:01:08.7]} 34. Rxf4 {[%clk 0:01:13.9]} 34... Rfa8 {[%clk
0:01:08.6]} 35. Nd4 {[%clk 0:01:11.1]} 35... Qxe5 {[%clk 0:01:03.9]} 36. Re4
{[%clk 0:01:02.4]} 36... Qf6 {[%clk 0:01:00.6]} 37. Rf1 {[%clk 0:01:00.1]} 37...
Bd6 {[%clk 0:00:55]} 38. h5 {[%clk 0:00:59.7]} 38... Be5 {[%clk 0:00:35.2]} 39.
hxg6 {[%clk 0:00:55.9]} 39... Bxd4 {[%clk 0:00:30]} 40. Rxd4 {[%clk 0:00:54.7]}
40... Qxg6 {[%clk 0:00:29.9]} 41. Qd1 {[%clk 0:00:51.9]} 41... Ra1 {[%clk
0:00:29.5]} 42. Qxa1 {[%clk 0:00:47.7]} 42... Rxa1 {[%clk 0:00:30.4]} 43. Rxa1
{[%clk 0:00:48]} 43... Qc2 {[%clk 0:00:31]} 44. Rg4+ {[%clk 0:00:46.9]} 44...
Kf6 {[%clk 0:00:30.3]} 45. Rg3 {[%clk 0:00:47.8]} 45... h5 {[%clk 0:00:27.1]}
46. Re1 {[%clk 0:00:47.9]} 46... h4 {[%clk 0:00:27.7]} 47. Rf3+ {[%clk
0:00:48.4]} 47... Kg6 {[%clk 0:00:28]} 48. Kh2 {[%clk 0:00:39.3]} 48... Qd2
{[%clk 0:00:18.2]} 49. Re4 {[%clk 0:00:38.3]} 49... Qd6+ {[%clk 0:00:14.9]} 50.
Kh3 {[%clk 0:00:33.8]} 50... Qd7+ {[%clk 0:00:13.1]} 51. Kxh4 {[%clk 0:00:21.3]}
51... f5 {[%clk 0:00:12.1]} 52. Ref4 {[%clk 0:00:17.7]} 52... Qc7 {[%clk
0:00:05.5]} 53. Kh3 {[%clk 0:00:14.7]} 53... Qh7+ {[%clk 0:00:05.6]} 54. Kg3
{[%clk 0:00:15]} 54... Qc7 {[%clk 0:00:03.1]} 55. Kh2 {[%clk 0:00:15.6]} 55...
Kg5 {[%clk 0:00:03.1]} 56. g3 {[%clk 0:00:16.2]} 56... Kg6 {[%clk 0:00:03.4]}
57. Rxf5 {[%clk 0:00:16.2]} 57... Qb6 {[%clk 0:00:03.9]} 58. Rf6+ {[%clk
0:00:16.3]} 58... Kg7 {[%clk 0:00:04]} 59. Rf7+ {[%clk 0:00:16.4]} 59... Kg6
{[%clk 0:00:04.5]} 60. R3f6+ {[%clk 0:00:14.9]} 60... Kh5 {[%clk 0:00:05.1]} 61.
Kh3 {[%clk 0:00:12.4]} 61... Qd8 {[%clk 0:00:04.7]} 62. g4+ {[%clk 0:00:12.5]}
62... Kg5 {[%clk 0:00:04.8]} 63. f4# {[%clk 0:00:13.2]} 1-0